lending/lending_fUSD_20250121
["ID","MTS","AMOUNT","RATE_DAILY","PERIOD"]
[349847486,1737459058951,-818.71,0.00020821,2]
[349847487,1737459058960,-500.0,0.00020821,2]
[349847488,1737459058969,-500.0,0.00020821,2]
[349847489,1737459058979,-2484.05,0.00020821,2]
[349847490,1737459058988,-500.0,0.00020821,2]
[349847491,1737459058997,-872.4,0.00020821,2]
[349847492,1737459059008,-500.0,0.00020821,2]
[349847493,1737459059017,-513.49,0.00020821,2]
[349847494,1737459059027,-500.0,0.00020821,2]
[349847495,1737459059035,-500.0,0.00020821,2]
[349847496,1737459059044,-500.0,0.00020821,2]
[349847497,1737459059053,-505.6582109,0.00020821,2]
[349847498,1737459059063,-500.0,0.00020821,2]
[349847499,1737459059072,-2351.36,0.00020821,2]
[349847500,1737459059081,-500.0,0.00020821,2]
[349847501,1737459059090,-500.0,0.00020821,2]
[349847502,1737459059099,-500.0,0.00020821,2]
[349847503,1737459059250,-500.0,0.00020821,2]
[349847504,1737459059260,-638.32,0.00020821,2]
[349847505,1737459059269,-500.0,0.00020821,2]
[349847506,1737459059278,-544.04,0.00020821,2]
[349847507,1737459059287,-500.0,0.00020821,2]
[349847508,1737459059297,-623.62,0.00020821,2]
[349847509,1737459059306,-500.0,0.00020821,2]
[349847510,1737459059315,-500.0,0.00020821,2]
[349847511,1737459059324,-500.0,0.00020821,2]
[349847512,1737459059334,-234.40756801,0.00020821,2]
[349847513,1737459059343,-500.0,0.00020821,2]
[349847514,1737459059351,-537.74,0.00020821,2]
[349847515,1737459059360,-500.0,0.00020821,2]
[349847516,1737459059371,-500.0,0.00020821,2]
[349847517,1737459059383,-500.0,0.00020821,2]
[349847518,1737459059392,-500.0,0.00020821,2]
[349847519,1737459059405,-585.42,0.00020821,2]
[349847520,1737459059415,-500.0,0.00020821,2]
[349847521,1737459059424,-2128.11,0.00020821,2]
[349847522,1737459059437,-500.0,0.00020821,2]
[349847523,1737459059447,-500.0,0.00020821,2]
[349847524,1737459059457,-478.02307022,0.00020821,2]
[349847525,1737459059467,-765.34,0.00020821,2]
[349847526,1737459059477,-500.0,0.00020821,2]
[349847527,1737459059487,-500.0,0.00020821,2]
[349847528,1737459059496,-500.0,0.00020821,2]
[349847529,1737459059506,-500.0,0.00020821,2]
[349847530,1737459059516,-500.0,0.00020821,2]
[349847531,1737459059526,-632.05,0.00020821,2]
[349847532,1737459059536,-500.0,0.00020821,2]
[349847533,1737459059546,-500.0,0.00020821,2]
[349847534,1737459059556,-500.0,0.00020821,2]
[349847535,1737459059570,-500.0,0.00020821,2]
[349847536,1737459059580,-500.0,0.00020821,2]
[349847537,1737459059589,-1427.89,0.00020821,2]
[349847538,1737459059600,-1787.2,0.00020821,2]
[349847539,1737459059611,-531.87,0.00020821,2]
[349847540,1737459059621,-500.0,0.00020821,2]
[349847541,1737459059634,-500.0,0.00020821,2]
[349847542,1737459059645,-150.0,0.00020873,2]
[349847543,1737459059656,-177.77,0.00020874,2]
[349847544,1737459059667,-300.0,0.00020888,2]
[349847545,1737459059677,-122215.62620915,0.000209,2]
[349847546,1737459059687,-161.158,0.000209,2]
[349847547,1737459059696,-150.0,0.00020911,2]
[349847548,1737459059705,-150.116,0.00020948,2]
[349847549,1737459059715,-150.0,0.00020948,2]
[349847550,1737459059725,-150.0,0.00020948,2]
[349847551,1737459059735,-150.0,0.00020948,2]
[349847552,1737459059744,-150.0,0.00020948,2]
[349847553,1737459059753,-200.0,0.0002096,2]
[349847554,1737459059763,-150.0,0.00020995,2]
[349847555,1737459059772,-700.0,0.00021,2]
[349847556,1737459059782,-322096.42860131,0.00021,2]
[349847557,1737459059791,-13034.57032323,0.00021,2]
[349847558,1737459059801,-161.031075,0.00021,2]
[349847559,1737459059811,-1893.55436817,0.00021,2]
[349847560,1737459059820,-142210.59200469,0.00021,2]
[349847561,1737459059830,-151.0,0.00021,2]
[349847562,1737459059840,-151.0,0.00021,2]
[349847563,1737459059850,-615.362484,0.00021,2]
[349847564,1737459059859,-151.0,0.00021,2]
[349847565,1737459059870,-615.362484,0.00021,2]
[349847566,1737459059883,-22709.56445576,0.00021,3]
[349847567,1737459059893,-2880.33855767,0.00021,3]
[349847568,1737459059903,-151.0,0.00021,2]
[349847569,1737459059912,-151.0,0.00021,2]
[349847570,1737459059922,-27195.70087213,0.00021,2]
[349847571,1737459059931,-7330.31761598,0.00021,2]
[349847572,1737459059942,-288.822405,0.00021,2]
[349847573,1737459059951,-288.822405,0.00021,2]
[349847574,1737459059961,-151.0,0.00021,2]
[349847575,1737459059971,-151.0,0.00021,2]
[349847576,1737459059980,-154.990602,0.00021,2]
[349847577,1737459059989,-1099.665887,0.00021,2]
[349847578,1737459059998,-230.042506,0.00021,2]
[349847579,1737459060008,-1099.665887,0.00021,2]
[349847580,1737459060017,-230.042506,0.00021,2]
[349847581,1737459060027,-158.118766,0.00021,2]
[349847582,1737459060036,-158.118766,0.00021,2]
[349847583,1737459060045,-2258.0,0.00021001,2]
[349847584,1737459060054,-876.66,0.00021041,2]
[349847585,1737459060063,-438.48,0.00021041,2]
[349847586,1737459060072,-438.48,0.00021041,2]
[349847587,1737459060081,-438.48,0.00021041,2]
[349847588,1737459060090,-438.48,0.00021041,2]
[349847589,1737459060099,-438.48,0.00021041,2]
[349847590,1737459060108,-438.48,0.00021041,2]
[349847591,1737459060117,-438.48,0.00021041,2]
[349847592,1737459060127,-438.48,0.00021041,2]
[349847593,1737459060136,-438.48,0.00021041,2]
[349847594,1737459060146,-438.48,0.00021041,2]
[349847595,1737459060155,-438.48,0.00021041,2]
[349847596,1737459060164,-438.48,0.00021041,2]
[349847597,1737459060173,-438.48,0.00021041,2]
[349847598,1737459060183,-438.48,0.00021041,2]
[349847599,1737459060192,-438.48,0.00021041,2]
[349847600,1737459060201,-438.48,0.00021041,2]
[349847601,1737459060210,-500.0,0.00021094,2]
[349847602,1737459060219,-1213.76,0.00021094,2]
[349847603,1737459060228,-624.28,0.00021094,2]
[349847604,1737459060237,-1357.46,0.00021094,2]
[349847605,1737459060247,-6606.09,0.00021094,2]
[349847606,1737459060256,-500.0,0.00021094,2]
[349847607,1737459060265,-500.0,0.00021094,2]
[349847608,1737459060274,-500.0,0.00021094,2]
[349847609,1737459060283,-409.204484,0.00021094,2]
[349847610,1737459060292,-785.18,0.00021094,2]
[349847611,1737459060301,-724.87,0.00021094,2]
[349847612,1737459060310,-1338.48,0.00021094,2]
[349847613,1737459060320,-596.08,0.00021094,2]
[349847614,1737459060329,-1373.44,0.00021094,2]
[349847615,1737459060338,-762.52,0.00021094,2]
[349847616,1737459060347,-289.329478,0.00021094,2]
[349847617,1737459060356,-830.31,0.00021094,2]
[349847618,1737459060365,-500.0,0.00021094,2]
[349847619,1737459060374,-500.0,0.00021094,2]
[349847620,1737459060386,-2465.73,0.00021094,2]
[349847621,1737459060395,-1634.47,0.00021094,2]
[349847622,1737459060404,-910.98,0.00021094,2]
[349847623,1737459060413,-760.26,0.00021094,2]
[349847624,1737459060422,-1581.37,0.00021094,2]
[349847625,1737459060431,-1827.33,0.00021094,2]
[349847626,1737459060440,-500.0,0.00021094,2]
[349847627,1737459060449,-1239.55,0.00021094,2]
[349847628,1737459060459,-923.48,0.00021094,2]
[349847629,1737459060467,-2290.67,0.00021094,2]
[349847630,1737459060477,-801.08,0.00021094,2]
[349847631,1737459060486,-886.64,0.00021094,2]
[349847632,1737459060495,-677.79,0.00021094,2]
[349847633,1737459060504,-963.55,0.00021094,2]
[349847634,1737459060514,-1690.83,0.00021094,2]
[349847635,1737459060523,-1017.87,0.00021094,2]
[349847636,1737459060532,-500.0,0.00021095,2]
[349847637,1737459060541,-915.83,0.00021095,2]
[349847638,1737459060551,-500.0,0.00021095,2]
[349847639,1737459060565,-531.82,0.00021095,2]
[349847640,1737459060575,-500.0,0.00021095,2]
[349847641,1737459060584,-500.0,0.00021095,2]
[349847642,1737459060595,-500.0,0.00021095,2]
[349847643,1737459060604,-500.0,0.00021095,2]
[349847644,1737459060614,-588.98,0.00021095,2]
[349847645,1737459060623,-504.69,0.00021095,2]
[349847646,1737459060637,-500.0,0.00021095,2]
[349847647,1737459060648,-500.0,0.00021095,2]
[349847648,1737459060657,-500.0,0.00021095,2]
[349847649,1737459060667,-500.0,0.00021095,2]
[349847650,1737459060676,-996.46,0.00021095,2]
[349847651,1737459060686,-500.0,0.00021095,2]
[349847652,1737459060695,-569.02,0.00021095,2]
[349847653,1737459060705,-504.63,0.00021095,2]
[349847654,1737459060715,-323.71302449,0.00021095,2]
[349847655,1737459060725,-500.0,0.00021095,2]
[349847656,1737459060734,-371.61206049,0.00021095,2]
[349847657,1737459060744,-561.3,0.00021095,2]
[349847658,1737459060753,-500.0,0.00021095,2]
[349847659,1737459060762,-500.0,0.00021095,2]
[349847660,1737459060773,-500.0,0.00021095,2]
[349847661,1737459060782,-165.42,0.00021095,2]
[349847662,1737459060791,-417.15078659,0.00021095,2]
[349847663,1737459060801,-500.0,0.00021095,2]
[349847664,1737459060811,-500.0,0.00021095,2]
[349847665,1737459060820,-500.0,0.00021095,2]
[349847666,1737459060829,-500.0,0.00021095,2]
[349847667,1737459060839,-500.0,0.00021095,2]
[349847668,1737459060848,-500.0,0.00021095,2]
[349847669,1737459060857,-500.0,0.00021095,2]
[349847670,1737459060866,-500.0,0.00021095,2]
[349847671,1737459060875,-500.0,0.00021095,2]
[349847672,1737459060890,-500.0,0.00021095,2]
[349847673,1737459060899,-500.0,0.00021095,2]
[349847674,1737459060909,-500.0,0.00021095,2]
[349847675,1737459060918,-500.0,0.00021095,2]
[349847676,1737459060927,-500.0,0.00021095,2]
[349847677,1737459060936,-500.0,0.00021095,2]
[349847678,1737459060945,-500.0,0.00021095,2]
[349847679,1737459060954,-500.0,0.00021095,2]
[349847680,1737459060963,-500.0,0.00021095,2]
[349847681,1737459060972,-500.0,0.00021095,2]
[349847682,1737459060981,-2379.98,0.00021095,2]
[349847683,1737459060990,-500.0,0.00021095,2]
[349847684,1737459060999,-500.0,0.00021095,2]
[349847685,1737459061008,-500.0,0.00021095,2]
[349847686,1737459061017,-500.0,0.00021095,2]
[349847687,1737459061027,-500.0,0.00021095,2]
[349847688,1737459061037,-1310.02,0.00021095,2]
[349847689,1737459061046,-500.0,0.00021095,2]
[349847690,1737459061055,-578.98,0.00021095,2]
[349847691,1737459061065,-532.79,0.00021095,2]
[349847692,1737459061074,-1410.6,0.00021095,2]
[349847693,1737459061083,-500.0,0.00021095,2]
[349847694,1737459061092,-732.73,0.00021095,2]
[349847695,1737459061102,-500.0,0.00021095,2]
[349847696,1737459061111,-500.0,0.00021095,2]
[349847697,1737459061120,-786.26,0.00021095,2]
[349847698,1737459061133,-1000.0,0.00021095,2]
[349847699,1737459061142,-763.29,0.00021095,2]
[349847700,1737459061151,-2378.04,0.00021095,2]
[349847701,1737459061161,-500.0,0.00021095,2]
[349847702,1737459061171,-500.0,0.00021095,2]
[349847703,1737459061182,-2033.22,0.00021095,2]
[349847704,1737459061191,-500.0,0.00021095,2]
[349847705,1737459061200,-804.36,0.00021095,2]
[349847706,1737459061210,-1243.05,0.00021095,2]
[349847707,1737459061219,-500.0,0.00021095,2]
[349847708,1737459061228,-500.0,0.00021095,2]
[349847709,1737459061238,-1212.13,0.00021095,2]
[349847710,1737459061247,-801.03,0.00021095,2]
[349847711,1737459061256,-1422.08,0.00021095,2]
[349847712,1737459061265,-801.79,0.00021095,2]
[349847713,1737459061275,-500.0,0.00021095,2]
[349847714,1737459061284,-500.0,0.00021095,2]
[349847715,1737459061293,-776.86,0.00021095,2]
[349847716,1737459061302,-500.0,0.00021095,2]
[349847717,1737459061311,-500.0,0.00021095,2]
[349847718,1737459061320,-500.0,0.00021095,2]
[349847719,1737459061329,-945.19,0.00021095,2]
[349847720,1737459061338,-627.7174251,0.00021095,2]
[349847721,1737459061347,-536.81,0.00021095,2]
[349847722,1737459061356,-1679.81,0.00021095,2]
[349847723,1737459061365,-500.0,0.00021095,2]
[349847724,1737459061374,-502.90648469,0.00021095,2]
[349847725,1737459061386,-1114.25,0.00021095,2]
[349847726,1737459061395,-500.0,0.00021095,2]
[349847727,1737459061404,-519.79160225,0.00021095,2]
[349847728,1737459061413,-500.0,0.00021095,2]
[349847729,1737459061422,-500.0,0.00021095,2]
[349847730,1737459061431,-1635.45,0.00021095,2]
[349847731,1737459061439,-500.0,0.00021095,2]
[349847732,1737459061448,-300.0,0.00021095,2]
[349847733,1737459061457,-512.07397301,0.00021095,2]
[349847734,1737459061466,-1109.47,0.00021095,2]
[349847735,1737459061476,-534.9,0.00021095,2]
[349847736,1737459061485,-500.0,0.00021095,2]
[349847737,1737459061494,-1760.33,0.00021095,2]
[349847738,1737459061503,-1889.17,0.00021095,2]
[349847739,1737459061512,-500.0,0.00021095,2]
[349847740,1737459061521,-500.0,0.00021095,2]
[349847741,1737459061531,-802.73,0.00021095,2]
[349847742,1737459061539,-571.56,0.00021095,2]
[349847743,1737459061549,-500.0,0.00021095,2]
[349847744,1737459061559,-1328.05,0.00021095,2]
[349847745,1737459061572,-554.29,0.00021095,2]
[349847746,1737459061582,-1490.59,0.00021095,2]
[349847747,1737459061592,-500.0,0.00021095,2]
[349847748,1737459061602,-500.0,0.00021095,2]
[349847749,1737459061612,-909.06,0.00021095,2]
[349847750,1737459061621,-500.0,0.00021095,2]
[349847751,1737459061633,-818.71,0.00021095,2]
[349847752,1737459061644,-500.0,0.00021095,2]
[349847753,1737459061654,-177.87754488,0.00021095,2]
[349847754,1737459061663,-2484.05,0.00021095,2]
[349847755,1737459061673,-500.0,0.00021095,2]
[349847756,1737459061683,-872.4,0.00021095,2]
[349847757,1737459061692,-500.0,0.00021095,2]
[349847758,1737459061701,-513.49,0.00021095,2]
[349847759,1737459061711,-500.0,0.00021095,2]
[349847760,1737459061719,-513.63101253,0.00021095,2]
[349847761,1737459061729,-500.0,0.00021095,2]
[349847762,1737459061739,-2351.36,0.00021095,2]
[349847763,1737459061748,-500.0,0.00021095,2]
[349847764,1737459061758,-500.0,0.00021095,2]
[349847765,1737459061769,-500.0,0.00021095,2]
[349847766,1737459061778,-500.0,0.00021095,2]
[349847767,1737459061788,-638.32,0.00021095,2]
[349847768,1737459061799,-213.48169578,0.00021095,2]
[349847769,1737459061808,-544.04,0.00021095,2]
[349847770,1737459061818,-500.0,0.00021095,2]
[349847771,1737459061828,-623.62,0.00021095,2]
[349847772,1737459061838,-500.0,0.00021095,2]
[349847773,1737459061847,-500.0,0.00021095,2]
[349847774,1737459061857,-500.0,0.00021095,2]
[349847775,1737459061867,-585.37564464,0.00021095,2]
[349847776,1737459061878,-537.74,0.00021095,2]
[349847777,1737459061888,-500.0,0.00021095,2]
[349847778,1737459061898,-333.19629098,0.00021095,2]
[349847779,1737459061908,-500.0,0.00021095,2]
[349847780,1737459061918,-500.0,0.00021095,2]
[349847781,1737459061928,-585.42,0.00021095,2]
[349847782,1737459061937,-500.0,0.00021095,2]
[349847783,1737459061947,-2128.11,0.00021095,2]
[349847784,1737459061956,-500.0,0.00021095,2]
[349847785,1737459061966,-500.0,0.00021095,2]
[349847786,1737459061976,-765.34,0.00021095,2]
[349847787,1737459061986,-500.0,0.00021095,2]
[349847788,1737459061995,-548.65482246,0.00021095,2]
[349847789,1737459062005,-500.0,0.00021095,2]
[349847790,1737459062014,-500.0,0.00021095,2]
[349847791,1737459062023,-500.0,0.00021095,2]
[349847792,1737459062033,-632.05,0.00021095,2]
[349847793,1737459062042,-500.0,0.00021095,2]
[349847794,1737459062051,-500.0,0.00021095,2]
[349847795,1737459062061,-500.0,0.00021095,2]
[349847796,1737459062070,-500.0,0.00021095,2]
[349847797,1737459062080,-1427.89,0.00021095,2]
[349847798,1737459062090,-1787.2,0.00021095,2]
[349847799,1737459062099,-531.87,0.00021095,2]
[349847800,1737459062108,-500.0,0.00021095,2]
[349847801,1737459062117,-500.0,0.00021095,2]
[349847802,1737459062130,-2211.18,0.000211,2]
[349847803,1737459062139,-692.12962963,0.00021151,2]
[349847804,1737459062148,-200.0,0.0002117,2]
[349847805,1737459062157,-2110.0,0.00021175,2]
[349847806,1737459062166,-154.43,0.00021178,2]
[349847807,1737459062175,-150.0,0.00021178,2]
[349847808,1737459062185,-437.71,0.00021178,2]
[349847809,1737459062194,-981.79,0.00021178,2]
[349847810,1737459062203,-150.0,0.00021178,2]
[349847811,1737459062212,-150.0,0.00021178,2]
[349847812,1737459062222,-150.0,0.00021178,2]
[349847813,1737459062390,-150.0,0.00021178,2]
[349847814,1737459062400,-150.0,0.00021178,2]
[349847815,1737459062410,-150.0,0.00021178,2]
[349847816,1737459062420,-150.0,0.00021178,2]
[349847817,1737459062430,-981.79,0.00021178,2]
[349847818,1737459062441,-437.71,0.00021178,2]
[349847819,1737459062451,-150.0,0.00021178,2]
[349847820,1737459062462,-150.0,0.00021178,2]
[349847821,1737459062471,-437.71,0.00021178,2]
[349847822,1737459062481,-981.79,0.00021178,2]
[349847823,1737459062491,-150.0,0.00021178,2]
[349847824,1737459062501,-150.0,0.00021178,2]
[349847825,1737459062510,-150.0,0.00021178,2]
[349847826,1737459062520,-150.0,0.00021178,2]
[349847827,1737459062529,-981.79,0.00021178,2]
[349847828,1737459062540,-298.01,0.00021178,2]
[349847829,1737459062551,-150.0,0.00021178,2]
[349847830,1737459062568,-150.0,0.00021178,2]
[349847831,1737459062579,-150.0,0.00021178,2]
[349847832,1737459062589,-437.71,0.00021178,2]
[349847833,1737459062599,-150.0,0.00021178,2]
[349847834,1737459062610,-150.0,0.00021178,2]
[349847835,1737459062621,-150.0,0.00021178,2]
[349847836,1737459062634,-437.71,0.00021178,2]
[349847837,1737459062646,-150.0,0.00021178,2]
[349847838,1737459062657,-981.79,0.00021178,2]
[349847839,1737459062667,-300.0,0.00021178,2]
[349847840,1737459062676,-150.0,0.00021178,2]
[349847841,1737459062686,-150.0,0.00021178,2]
[349847842,1737459062696,-298.01,0.00021178,2]
[349847843,1737459062706,-298.01,0.00021178,2]
[349847844,1737459062715,-981.79,0.00021178,2]
[349847845,1737459062725,-150.0,0.00021178,2]
[349847846,1737459062735,-392.0,0.00021178,2]
[349847847,1737459062745,-150.0,0.00021178,2]
[349847848,1737459062754,-150.0,0.00021178,2]
[349847849,1737459062763,-150.0,0.00021178,2]
[349847850,1737459062773,-437.71,0.00021178,2]
[349847851,1737459062783,-300.0,0.00021178,2]
[349847852,1737459062792,-981.79,0.00021178,2]
[349847853,1737459062801,-150.0,0.00021178,2]
[349847854,1737459062811,-437.71,0.00021178,2]
[349847855,1737459062820,-150.0,0.00021178,2]
[349847856,1737459062830,-150.0,0.00021178,2]
[349847857,1737459062839,-150.0,0.00021178,2]
[349847858,1737459062849,-437.71,0.00021178,2]
[349847859,1737459062859,-150.0,0.00021178,2]
[349847860,1737459062868,-150.0,0.00021178,2]
[349847861,1737459062882,-150.0,0.00021178,2]
[349847862,1737459062892,-981.79,0.00021178,2]
[349847863,1737459062903,-981.79,0.00021178,2]
[349847864,1737459062914,-437.71,0.00021178,2]
[349847865,1737459062923,-150.0,0.00021178,2]
[349847866,1737459062933,-407.79,0.00021178,2]
[349847867,1737459062942,-981.79,0.00021178,2]
[349847868,1737459062952,-150.0,0.00021178,2]
[349847869,1737459062962,-150.0,0.00021178,2]
[349847870,1737459062971,-437.71,0.00021178,2]
[349847871,1737459062981,-150.0,0.00021178,2]
[349847872,1737459062990,-981.79,0.00021178,2]
[349847873,1737459063000,-150.0,0.00021178,2]
[349847874,1737459063010,-981.79,0.00021178,2]
[349847875,1737459063019,-437.71,0.00021178,2]
[349847876,1737459063029,-150.0,0.00021178,2]
[349847877,1737459063039,-150.0,0.00021178,2]
[349847878,1737459063049,-437.71,0.00021178,2]
[349847879,1737459063059,-981.79,0.00021178,2]
[349847880,1737459063069,-981.79,0.00021178,2]
[349847881,1737459063078,-150.0,0.00021178,2]
[349847882,1737459063088,-150.0,0.00021178,2]
[349847883,1737459063098,-305.49,0.00021178,2]
[349847884,1737459063108,-150.0,0.00021178,2]
[349847885,1737459063118,-150.0,0.00021178,2]
[349847886,1737459063129,-150.0,0.00021178,2]
[349847887,1737459063138,-981.79,0.00021178,2]
[349847888,1737459063148,-150.0,0.00021178,2]
[349847889,1737459063158,-981.79,0.00021178,2]
[349847890,1737459063168,-150.0,0.00021178,2]
[349847891,1737459063178,-981.79,0.00021178,2]
[349847892,1737459063188,-152.48,0.00021178,2]
[349847893,1737459063199,-971.1,0.00021195,2]
[349847894,1737459063209,-152.07,0.0002123,2]
[349847895,1737459063219,-300.0,0.0002123,2]
[349847896,1737459063229,-150.0,0.00021237,2]
[349847897,1737459063239,-150.0,0.0002125,2]
[349847898,1737459063249,-692.12962963,0.0002126,2]
[349847899,1737459063259,-693.33549251,0.00021296,2]
[349847900,1737459063269,-32601.33711206,0.000213,2]
[349847901,1737459063279,-150.0,0.00021319,2]
[349847902,1737459063288,-150.0,0.00021323,2]
[349847903,1737459063297,-692.12962963,0.00021342,2]
[349847904,1737459063308,-1220.0,0.00021343,2]
[349847905,1737459063318,-340.61,0.00021345,2]
[349847906,1737459063329,-500.0,0.00021368,2]
[349847907,1737459063339,-1213.76,0.00021368,2]
[349847908,1737459063349,-624.28,0.00021368,2]
[349847909,1737459063359,-1357.46,0.00021368,2]
[349847910,1737459063369,-6606.09,0.00021368,2]
[349847911,1737459063382,-500.0,0.00021368,2]
[349847912,1737459063392,-500.0,0.00021368,2]
[349847913,1737459063402,-409.204484,0.00021368,2]
[349847914,1737459063413,-785.18,0.00021368,2]
[349847915,1737459063423,-724.87,0.00021368,2]
[349847916,1737459063433,-1338.48,0.00021368,2]
[349847917,1737459063443,-596.08,0.00021368,2]
[349847918,1737459063453,-1373.44,0.00021368,2]
[349847919,1737459063462,-762.52,0.00021368,2]
[349847920,1737459063472,-289.329478,0.00021368,2]
[349847921,1737459063482,-830.31,0.00021368,2]
[349847922,1737459063493,-500.0,0.00021368,2]
[349847923,1737459063503,-500.0,0.00021368,2]
[349847924,1737459063513,-2465.73,0.00021368,2]
[349847925,1737459063523,-151.335251,0.00021368,2]
[349847926,1737459063534,-1634.47,0.00021368,2]
[349847927,1737459063544,-910.98,0.00021368,2]
[349847928,1737459063554,-760.26,0.00021368,2]
[349847929,1737459063567,-1581.37,0.00021368,2]
[349847930,1737459063582,-1827.33,0.00021368,2]
[349847931,1737459063594,-500.0,0.00021368,2]
[349847932,1737459063604,-1239.55,0.00021368,2]
[349847933,1737459063615,-923.48,0.00021368,2]
[349847934,1737459063625,-150.196153,0.00021368,2]
[349847935,1737459063639,-2290.67,0.00021368,2]
[349847936,1737459063651,-801.08,0.00021368,2]
[349847937,1737459063662,-886.64,0.00021368,2]
[349847938,1737459063672,-677.79,0.00021368,2]
[349847939,1737459063683,-963.55,0.00021368,2]
[349847940,1737459063693,-1690.83,0.00021368,2]
[349847941,1737459063703,-1017.87,0.00021368,2]
[349847942,1737459063713,-500.0,0.00021369,2]
[349847943,1737459063723,-915.83,0.00021369,2]
[349847944,1737459063734,-515.61,0.00021369,2]
[349847945,1737459063744,-531.82,0.00021369,2]
[349847946,1737459063753,-500.0,0.00021369,2]
[349847947,1737459063763,-500.0,0.00021369,2]
[349847948,1737459063773,-500.0,0.00021369,2]
[349847949,1737459063784,-500.0,0.00021369,2]
[349847950,1737459063794,-588.98,0.00021369,2]
[349847951,1737459063803,-504.69,0.00021369,2]
[349847952,1737459063813,-500.0,0.00021369,2]
[349847953,1737459063823,-165.22711935,0.00021369,2]
[349847954,1737459063833,-500.0,0.00021369,2]
[349847955,1737459063843,-217.06571422,0.00021369,2]
[349847956,1737459063852,-996.46,0.00021369,2]
[349847957,1737459063864,-500.0,0.00021369,2]
[349847958,1737459063874,-569.02,0.00021369,2]
[349847959,1737459063887,-504.63,0.00021369,2]
[349847960,1737459063896,-500.0,0.00021369,2]
[349847961,1737459063906,-561.3,0.00021369,2]
[349847962,1737459063915,-500.0,0.00021369,2]
[349847963,1737459063925,-500.0,0.00021369,2]
[349847964,1737459063936,-500.0,0.00021369,2]
[349847965,1737459063946,-500.0,0.00021369,2]
[349847966,1737459063955,-500.0,0.00021369,2]
[349847967,1737459063964,-500.0,0.00021369,2]
[349847968,1737459063974,-500.0,0.00021369,2]
[349847969,1737459063984,-500.0,0.00021369,2]
[349847970,1737459063994,-500.0,0.00021369,2]
[349847971,1737459064003,-500.0,0.00021369,2]
[349847972,1737459064012,-500.0,0.00021369,2]
[349847973,1737459064022,-500.0,0.00021369,2]
[349847974,1737459064031,-500.0,0.00021369,2]
[349847975,1737459064040,-500.0,0.00021369,2]
[349847976,1737459064049,-500.0,0.00021369,2]
[349847977,1737459064060,-500.0,0.00021369,2]
[349847978,1737459064070,-500.0,0.00021369,2]
[349847979,1737459064079,-500.0,0.00021369,2]
[349847980,1737459064089,-500.0,0.00021369,2]
[349847981,1737459064098,-500.0,0.00021369,2]
[349847982,1737459064108,-509.64949522,0.00021369,2]
[349847983,1737459064117,-500.0,0.00021369,2]
[349847984,1737459064127,-2379.98,0.00021369,2]
[349847985,1737459064141,-500.0,0.00021369,2]